fUSD/lending_fUSD_20250310
["ID","MTS","AMOUNT","RATE_DAILY","PERIOD"]
[355822553,1741620632549,-154.3,8.913e-05,2]
[355822555,1741620632558,-250.0,8.945e-05,2]
[355822558,1741620632567,-154.3,8.947e-05,2]
[355822561,1741620632577,-154.3,8.98e-05,2]
[355822564,1741620632586,-693.05,8.995e-05,2]
[355822567,1741620632596,-729.36,8.995e-05,2]
[355822569,1741620632605,-500.0,8.995e-05,2]
[355822571,1741620632615,-154.3,9.013e-05,2]
[355822573,1741620632624,-150.99,9.013e-05,2]
[355822575,1741620632634,-474.71,9.023e-05,2]
[355822577,1741620632644,-154.3,9.046e-05,2]
[355822579,1741620632653,-154.3,9.08e-05,2]
[355822581,1741620632662,-154.3,9.113e-05,2]
[355822583,1741620632672,-154.3,9.146e-05,2]
[355822584,1741620632682,-359.59,9.157e-05,2]
[355822586,1741620632692,-154.3,9.18e-05,2]
[355822589,1741620632705,-154.3,9.213e-05,2]
[355822590,1741620632714,-154.3,9.246e-05,2]
[355822592,1741620632724,-154.3,9.279e-05,2]
[355822594,1741620632735,-154.3,9.313e-05,2]
[355822597,1741620632745,-154.3,9.346e-05,2]
[355822598,1741620632754,-150.0,9.379e-05,2]
[355822600,1741620632764,-154.3,9.379e-05,2]
[355822602,1741620632775,-167.19,9.38e-05,2]
[355822604,1741620632785,-154.3,9.413e-05,2]
[355822605,1741620632795,-183.0,9.543e-05,2]
[355822606,1741620632805,-150.0,9.562e-05,7]
[355822607,1741620632815,-1842.31,9.587e-05,2]
[355822608,1741620632824,-1000.0,9.624e-05,2]
[355822609,1741620632833,-550.0,9.625e-05,2]
[355822610,1741620632843,-1000.0,9.661e-05,2]
[355822611,1741620632853,-4744.2072,9.661e-05,2]
[355822612,1741620632863,-420.0,9.754e-05,2]
[355822613,1741620632873,-150.0,9.755e-05,2]
[355822614,1741620632882,-169.3,9.779e-05,2]
[355822615,1741620632891,-1568.1875,9.8e-05,2]
[355822616,1741620632901,-3894.8916,9.8e-05,2]
[355822617,1741620632911,-325.2305,9.89e-05,2]
[355822618,1741620632922,-3359.60016736,9.899e-05,2]
[355822619,1741620632933,-517.8114,9.9e-05,2]
[355822620,1741620632943,-47992.9558,9.9e-05,2]
[355822621,1741620632953,-14354.863,9.9e-05,2]
[355822622,1741620632965,-13748.2789,9.9e-05,2]
[355822623,1741620632975,-263.9693,9.9e-05,2]
[355822624,1741620632985,-301.9312,9.9e-05,2]
[355822625,1741620632995,-171.192,9.9e-05,2]
[355822626,1741620633005,-5000.0,9.9e-05,2]
[355822627,1741620633016,-8256.24601442,9.91e-05,2]
[355822628,1741620633026,-3736.547,9.955e-05,2]
[355822629,1741620633036,-160.12650749,9.963e-05,2]
[355822630,1741620633047,-216.23010581,9.989e-05,2]
[355822631,1741620633059,-500.0,9.989e-05,2]
[355822632,1741620633070,-500.0,9.989e-05,2]
[355822633,1741620633080,-500.0,9.989e-05,2]
[355822634,1741620633091,-500.0,9.989e-05,2]
[355822635,1741620633102,-500.0,9.989e-05,2]
[355822636,1741620633112,-500.0,9.989e-05,2]
[355822637,1741620633123,-500.0,9.989e-05,2]
[355822638,1741620633134,-500.0,9.989e-05,2]
[355822639,1741620633144,-202.30984433,9.989e-05,2]
[355822640,1741620633154,-500.0,9.989e-05,2]
[355822641,1741620633168,-450.0,9.989e-05,2]
[355822642,1741620633179,-88836.37070605,9.99e-05,2]
[355822643,1741620633193,-4586.06303229,9.99e-05,2]
[355822644,1741620633367,-759.58663573,9.99e-05,2]
[355822645,1741620633380,-398.05286501,9.99e-05,2]
[355822646,1741620633392,-297.04785907,9.99e-05,2]
[355822647,1741620633404,-5012.5,9.99e-05,2]
[355822648,1741620633453,-253.83214093,9.99e-05,2]
[355822649,1741620633465,-8303.26521379,9.99e-05,2]
[355822650,1741620633478,-7049.53663251,9.99e-05,2]
[355822658,1741620637969,-6425.6,9.99e-05,2]
[355822659,1741620637982,-610.82773166,9.99e-05,2]
[355822660,1741620637994,-18666.6981831,9.99e-05,2]
[355822661,1741620638019,-416.94616708,9.99e-05,2]
[355822662,1741620638031,-1713.56068351,9.99e-05,2]
[355822663,1741620638043,-3379.26028201,9.99e-05,2]
[355822664,1741620638148,-12073.74617446,9.99e-05,2]
[355822818,1741620640076,-1000.0,9.89e-05,2]
[355822820,1741620640086,-240728.62818597,9.99e-05,2]
[355822822,1741620640099,-343.63600818,9.99e-05,2]
[355822824,1741620640111,-1433.0104599,9.99e-05,2]
[355822830,1741620640163,-1061.0,9.99e-05,2]
[355822832,1741620640179,-1610.56,9.99e-05,2]
[355822834,1741620640192,-402.9415,9.99e-05,2]
[355822841,1741620640251,-290272.92212989,9.99e-05,2]
[355822843,1741620640262,-5154.78301656,9.997e-05,2]
[355822845,1741620640272,-1248.81683572,9.999e-05,3]
[355822847,1741620640282,-1325.47,9.999e-05,2]
[355822849,1741620640292,-1000.0,9.999e-05,2]
[355822851,1741620640301,-1523.0,0.0001,2]
[355822853,1741620640311,-156.69209502,0.0001,2]
[355822855,1741620640320,-115153.17014707,0.0001,2]
[355822857,1741620640331,-1394388.04044255,0.0001,2]
[355822859,1741620640340,-643101.10324001,0.0001,2]
[355822866,1741620640399,-1018.78350001,0.0001,2]
[355822868,1741620640411,-1824.99637321,0.0001,2]
[355823342,1741620644942,-1113.16750003,0.0001,2]
[355823344,1741620644953,-22288.75763103,0.0001,2]
[355823346,1741620644966,-619020.76618014,0.0001,2]
[355823349,1741620644978,-506.63226776,0.0001,2]
[355823437,1741620645928,-2504.51157657,0.0001,2]
[355823539,1741620646879,-840.80000068,0.0001,2]
[355823541,1741620646891,-4019.96053,0.0001,2]
[355823548,1741620646944,-1649.0815,0.0001,2]
[355823577,1741620647325,-869.80915279,0.0001,2]
[355824313,1741620702496,158.24,7.196e-05,2]
[355824314,1741620702731,158.24,8.096e-05,2]
[355824322,1741620757044,30564.11175928,8.209e-05,2]
[355824429,1741621469031,727.06,8.219e-05,2]
[355824430,1741621782344,158.24,7.196e-05,2]
[355824436,1741621832417,-200.0,8.815e-05,2]
[355824437,1741621832427,-150.0,8.822e-05,2]
[355824438,1741621832437,-150.56005864,8.829e-05,2]
[355824439,1741621832449,-1849.43994136,8.829e-05,2]
[355824440,1741621832459,-8454.61634987,8.853e-05,2]
[355824441,1741621832471,-847.26578246,8.853e-05,2]
[355824442,1741621832483,-658.86786767,8.853e-05,2]
[355824443,1741621832492,-921.15,8.86e-05,2]
[355824444,1741621832502,-150.0,8.863e-05,2]
[355824445,1741621832512,-150.0,8.959e-05,2]
[355824446,1741621832522,-150.0,8.994e-05,2]
[355824447,1741621832532,-22.38329527,8.995e-05,2]
[355824448,1741621832543,-250.54459124,8.995e-05,2]
[355824449,1741621832674,-4576.63211349,8.995e-05,2]
[355824450,1741621832684,-1035.52,8.995e-05,2]
[355824451,1741621832694,-1852.42,8.995e-05,2]
[355824452,1741621832704,-5742.38,8.995e-05,2]
[355824453,1741621832714,-1000.0,8.995e-05,2]
[355824454,1741621832725,-198.0,8.995e-05,2]
[355824455,1741621832735,-1061.07,8.995e-05,2]
[355824456,1741621832744,-596.88,8.995e-05,2]
[355824457,1741621832754,-296.18,8.995e-05,2]
[355824458,1741621832764,-158.24,8.995e-05,2]
[355824460,1741621832773,-550.0,9e-05,2]
[355824462,1741621832782,-1000.0,9e-05,2]
[355824464,1741621832792,-984.49997026,9e-05,2]
[355824466,1741621832804,-15.50002974,9e-05,2]
[355824468,1741621832813,-1984.49997026,9.1e-05,3]
[355824470,1741621832825,-315.50002974,9.1e-05,3]
[355824472,1741621832834,-4600.0,9.2e-05,3]
[355824474,1741621832844,-172.27,9.265e-05,2]
[355824476,1741621832853,-1981.06000917,9.265e-05,2]
[355824478,1741621832865,-1717.68999083,9.265e-05,2]
[355824480,1741621832874,-849.24,9.265e-05,2]
[355824482,1741621832883,-150.99,9.265e-05,2]
[355824484,1741621832894,-1465.59356877,9.3e-05,3]
[355824503,1741621838454,-5534.40643123,9.3e-05,3]
[355824504,1741621838463,-9300.0,9.4e-05,3]
[355824505,1741621838473,-11600.0,9.5e-05,3]
[355824506,1741621838483,-150.0,9.562e-05,7]
[355824507,1741621838492,-2300.0,9.6e-05,3]
[355824508,1741621838502,-109.21245835,9.697e-05,2]
[355824509,1741621838514,-440.78754165,9.697e-05,2]
[355824510,1741621838524,-550.0,9.697e-05,2]
[355824511,1741621838534,-150.0,9.697e-05,2]
[355824512,1741621838544,-2300.0,9.7e-05,3]
[355824513,1741621838554,-1000.0,9.726e-05,2]
[355824514,1741621838564,-150.0,9.726e-05,2]
[355824515,1741621838573,-150.0,9.728e-05,2]
[355824516,1741621838583,-150.0,9.728e-05,2]
[355824517,1741621838592,-150.0,9.729e-05,2]
[355824518,1741621838602,-150.0,9.737e-05,2]
[355824519,1741621838612,-150.0,9.745e-05,2]
[355824520,1741621838622,-150.0,9.75e-05,2]
[355824521,1741621838632,-150.0,9.75e-05,2]
[355824522,1741621838641,-150.0,9.751e-05,2]
[355824523,1741621838651,-150.0,9.753e-05,2]
[355824524,1741621838661,-500.0,9.753e-05,2]
[355824525,1741621838675,-150.0,9.757e-05,2]
[355824526,1741621838684,-150.0,9.758e-05,2]
[355824527,1741621838694,-111.61227704,9.758e-05,2]
[355824528,1741621838707,-38.38772296,9.758e-05,2]
[355824529,1741621838716,-150.0,9.758e-05,2]
[355824530,1741621838726,-150.0,9.759e-05,2]
[355824531,1741621838736,-150.0,9.76e-05,2]
[355824532,1741621838746,-150.0,9.762e-05,2]
[355824533,1741621838755,-415.61827704,9.765e-05,2]
[355824534,1741621838767,-425.155,9.765e-05,2]
[355824596,1741621840296,-159.22672296,9.765e-05,2]
[355824597,1741621840306,-150.0,9.77e-05,2]
[355824598,1741621840316,-150.0,9.772e-05,2]
[355824599,1741621840326,-150.0,9.779e-05,2]
[355824600,1741621840336,-150.0,9.781e-05,2]
[355824602,1741621840345,-150.0,9.782e-05,2]
[355824603,1741621840355,-150.0,9.782e-05,2]
[355824605,1741621840364,-150.0,9.782e-05,2]
[355824607,1741621840373,-150.0,9.788e-05,2]
[355824609,1741621840383,-150.0,9.788e-05,2]
[355824611,1741621840393,-150.0,9.789e-05,2]
[355824613,1741621840403,-150.0,9.793e-05,2]
[355824615,1741621840412,-150.0,9.793e-05,2]
[355824617,1741621840424,-1000.0,9.794e-05,2]
[355824619,1741621840434,-150.0,9.796e-05,2]
[355824621,1741621840444,-5769.6217,9.8e-05,2]
[355824623,1741621840454,-2300.0,9.8e-05,3]
[355824625,1741621840463,-150.0,9.805e-05,2]
[355824627,1741621840472,-150.0,9.807e-05,2]
[355824629,1741621840481,-150.0,9.807e-05,2]
[355824631,1741621840491,-163.10653465,9.809e-05,2]
[355824633,1741621840501,-150.0,9.811e-05,2]
[355824635,1741621840511,-150.0,9.812e-05,2]
[355824637,1741621840520,-150.0,9.812e-05,2]
[355824639,1741621840529,-1000.0,9.815e-05,2]
[355824641,1741621840539,-150.0,9.819e-05,2]
[355824643,1741621840549,-150.0,9.819e-05,2]
[355824645,1741621840559,-1000.0,9.82e-05,2]
[355824647,1741621840568,-150.0,9.824e-05,2]
[355824649,1741621840577,-150.0,9.825e-05,2]
[355824651,1741621840586,-1000.0,9.825e-05,2]
[355824653,1741621840595,-150.0,9.828e-05,2]
[355824655,1741621840604,-150.0,9.829e-05,2]
[355824657,1741621840614,-1000.0,9.829e-05,2]
[355824659,1741621840623,-150.0,9.831e-05,2]
[355824661,1741621840633,-151.63101276,9.832e-05,2]
[355824662,1741621840642,-150.0,9.832e-05,2]
[355824664,1741621840651,-1000.0,9.832e-05,2]
[355824666,1741621840661,-334.64981997,9.834e-05,2]
[355824668,1741621840671,-1000.0,9.836e-05,2]
[355824670,1741621840680,-150.0,9.838e-05,2]
[355824672,1741621840689,-150.0,9.841e-05,2]
[355824673,1741621840699,-150.0,9.841e-05,2]
[355824674,1741621840709,-150.0,9.845e-05,2]
[355824675,1741621840719,-150.0,9.847e-05,2]
[355824676,1741621840728,-507.82981777,9.848e-05,2]
[355824677,1741621840738,-150.0,9.85e-05,2]
[355824678,1741621840747,-1649.5587,9.854e-05,2]
[355824679,1741621840757,-150.0,9.855e-05,2]
[355824680,1741621840767,-150.0,9.855e-05,2]
[355824681,1741621840776,-150.0,9.857e-05,2]
[355824682,1741621840786,-1000.0,9.86e-05,2]
[355824683,1741621840797,-150.0,9.861e-05,2]
[355824684,1741621840806,-150.0,9.862e-05,2]
[355824685,1741621840815,-150.0,9.865e-05,2]
[355824687,1741621840825,-150.0,9.869e-05,2]
[355824689,1741621840835,-150.0,9.87e-05,2]
[355824691,1741621840844,-1000.0,9.873e-05,2]
[355824692,1741621840854,-150.0,9.875e-05,2]
[355824693,1741621840863,-1000.0,9.876e-05,2]
[355824694,1741621840872,-150.0,9.878e-05,2]
[355824695,1741621840882,-150.0,9.879e-05,2]
[355824696,1741621840891,-150.0,9.879e-05,2]
[355824697,1741621840899,-150.0,9.88e-05,2]
[355824698,1741621840909,-150.0,9.882e-05,2]
[355824699,1741621840920,-5706.5085,9.889e-05,2]
[355824700,1741621840930,-249.0563,9.89e-05,2]
[355824701,1741621840940,-255.0,9.894e-05,2]
[355824702,1741621840950,-19299.2368,9.9e-05,2]
[355824703,1741621840960,-28383.7743,9.9e-05,2]
[355824704,1741621840970,-9808.71050095,9.9e-05,2]
[355824705,1741621841122,-7135.09109905,9.9e-05,2]
[355824706,1741621841132,-2500.0,9.9e-05,2]
[355824707,1741621841141,-2989.238,9.9e-05,2]
[355824708,1741621841150,-171.192,9.9e-05,2]
[355824709,1741621841159,-1023.2571,9.9e-05,2]
[355824710,1741621841170,-2300.0,9.9e-05,3]
[355824711,1741621841179,-150.0,9.901e-05,2]
[355824712,1741621841189,-150.0,9.902e-05,2]
[355824713,1741621841199,-150.0,9.905e-05,2]
[355824714,1741621841207,-150.0,9.905e-05,2]
[355824715,1741621841215,-150.0,9.906e-05,2]
[355824716,1741621841225,-161.01212656,9.909e-05,2]
[355824717,1741621841235,-150.0,9.909e-05,2]
[355824718,1741621841244,-150.0,9.91e-05,2]
[355824719,1741621841255,-150.0,9.912e-05,2]
[355824720,1741621841264,-1315.0,9.913e-05,2]
[355824721,1741621841273,-150.0,9.913e-05,2]
[355824722,1741621841283,-150.0,9.913e-05,2]
[355824723,1741621841292,-150.0,9.913e-05,2]
[355824724,1741621841302,-150.0,9.915e-05,2]
[355824725,1741621841312,-417.0,9.918e-05,2]
[355824726,1741621841322,-150.0,9.92e-05,2]
[355824727,1741621841332,-150.0,9.924e-05,2]
[355824728,1741621841341,-150.0,9.924e-05,2]
[355824729,1741621841352,-150.0,9.924e-05,2]
[355824730,1741621841361,-1000.0,9.924e-05,2]
[355824731,1741621841371,-150.0,9.925e-05,2]
[355824732,1741621841382,-150.0,9.928e-05,2]
[355824733,1741621841392,-150.0,9.929e-05,2]
[355824734,1741621841402,-150.0,9.932e-05,2]
[355824735,1741621841412,-150.0,9.933e-05,2]
[355824736,1741621841422,-150.0,9.934e-05,2]
[355824737,1741621841432,-1000.0,9.934e-05,2]
[355824738,1741621841442,-150.0,9.937e-05,2]
[355824739,1741621841452,-1000.0,9.94e-05,2]
[355824740,1741621841462,-150.0,9.942e-05,2]
[355824741,1741621841472,-150.0,9.942e-05,2]
[355824742,1741621841482,-150.0,9.945e-05,2]
[355824743,1741621841491,-505.1624235,9.945e-05,2]
[355824744,1741621841501,-150.0,9.949e-05,2]
[355824745,1741621841510,-150.0,9.949e-05,2]
[355824746,1741621841520,-150.0,9.952e-05,2]
[355824747,1741621841529,-150.0,9.953e-05,2]
[355824748,1741621841538,-150.0,9.954e-05,2]
[355824749,1741621841548,-150.0,9.954e-05,2]
[355824750,1741621841557,-150.0,9.954e-05,2]
[355824751,1741621841567,-1000.0,9.955e-05,2]
[355824752,1741621841576,-150.0,9.955e-05,2]
[355824753,1741621841586,-150.0,9.959e-05,2]
[355824754,1741621841596,-150.0,9.96e-05,2]
[355824755,1741621841605,-150.0,9.962e-05,2]
[355824756,1741621841615,-150.0,9.963e-05,2]
[355824757,1741621841624,-315.22778718,9.963e-05,2]
[355824758,1741621841636,-150.0,9.964e-05,2]
[355824759,1741621841646,-1000.0,9.964e-05,2]
[355824760,1741621841656,-150.0,9.964e-05,2]
[355824761,1741621841666,-150.0,9.965e-05,2]
[355824762,1741621841675,-150.0,9.966e-05,2]
[355824763,1741621841685,-150.0,9.966e-05,2]
[355824764,1741621841694,-150.0,9.966e-05,2]
[355824765,1741621841704,-150.0,9.968e-05,2]
[355824766,1741621841714,-150.0,9.971e-05,2]
[355824767,1741621841723,-157.21622878,9.971e-05,2]
[355824768,1741621841733,-150.0,9.971e-05,2]
[355824769,1741621841743,-150.0,9.971e-05,2]
[355824770,1741621841752,-1000.0,9.974e-05,2]
[355824771,1741621841762,-150.0,9.98e-05,2]
[355824772,1741621841773,-150.0,9.98e-05,2]
[355824773,1741621841782,-150.0,9.983e-05,2]
[355824774,1741621841792,-150.0,9.984e-05,2]
[355824775,1741621841802,-150.0,9.986e-05,2]
[355824776,1741621841811,-2867.39833262,9.987e-05,4]
[355824777,1741621841821,-150.0,9.988e-05,2]
[355824778,1741621841831,-150.0,9.99e-05,2]
[355824779,1741621841840,-150.0,9.992e-05,2]
[355824780,1741621841850,-150.0,9.993e-05,2]
[355824781,1741621841860,-150.0,9.994e-05,2]
[355824782,1741621841869,-150.0,9.995e-05,2]
[355824783,1741621841879,-150.0,9.997e-05,2]
[355824784,1741621841889,-1000.0,9.997e-05,2]
[355824785,1741621841898,-1248.81683572,9.999e-05,3]
[355824786,1741621841909,-1325.47,9.999e-05,2]
[355824787,1741621841919,-151.36107407,9.999e-05,2]
[355824788,1741621841928,-500.0,9.999e-05,2]
[355824789,1741621841938,-500.0,9.999e-05,2]
[355824790,1741621841947,-500.0,9.999e-05,2]
[355824791,1741621841957,-500.0,9.999e-05,2]
[355824792,1741621841968,-500.0,9.999e-05,2]
[355824793,1741621841978,-500.0,9.999e-05,2]
[355824794,1741621841988,-156.61689103,9.999e-05,2]
[355824795,1741621841997,-156.69209502,0.0001,2]
[355824796,1741621842007,-12957.18928846,0.0001,2]
[355824797,1741621842807,-2527.19995492,0.0001,2]
[355824798,1741621842818,-2146.35130153,0.0001,2]
[355824799,1741621842830,-99266.2250484,0.0001,2]
[355824800,1741621842840,-2063784.85072853,0.0001,2]
[355824801,1741621842852,-1025.24639998,0.0001,2]
[355824818,1741621844220,-2859.4613911,8.838e-05,2]
[355824819,1741621844234,-4000.0,8.838e-05,2]
[355824820,1741621844297,-2491.9286089,8.838e-05,2]
[355824821,1741621844307,-150.0,9.752e-05,2]
[355824822,1741621844317,-150.0,9.795e-05,2]
[355824823,1741621844327,-150.0,9.822e-05,2]
[355824824,1741621844336,-616078.83757124,0.0001,2]
[355824825,1741621844348,-4757.60090301,0.0001,2]
[355824826,1741621844360,-1505.59568611,0.0001,2]
[355824827,1741621845587,-6469.58407248,0.0001,2]
[355824933,1741621846627,-399.22521393,9.999e-05,2]
[355824935,1741621846638,-600.77478607,9.999e-05,2]
[355824936,1741621846648,-2770.62950741,0.0001,2]
[355824938,1741621846659,-425.49872081,0.0001,2]
[355824941,1741621846671,-83955.0,0.0001,2]
[355824945,1741621846690,-4060.75325396,0.0001,2]
[355824949,1741621846728,-265.68894542,0.0001,2]
[355824971,1741621846833,-2633.44360321,0.0001,2]
[355824994,1741621962638,5662.97293836,8.209e-05,2]
[355824995,1741621989008,157.0,8.209e-05,3]
[355824996,1741622048188,157.0,8.209e-05,3]
[355824997,1741622107382,153.0,8.209e-05,3]
[355824998,1741622150321,153.113522,8.75e-05,2]
[355825000,1741622409260,153.0,8.209e-05,3]
[355825001,1741622521024,1059.28,0.00012986,30]
[355825002,1741622650745,161.85,8.714e-05,2]
[355825003,1741622698935,887.59,8.705e-05,2]
[355825004,1741622707929,153.0,8.209e-05,3]
[355825007,1741622847431,200.0,8.705e-05,2]
[355825008,1741622861695,690.7,8.219e-05,2]
[355825017,1741622954674,158.24,7.196e-05,2]
[355825018,1741623009027,153.0,8.209e-05,3]
[355825025,1741623032310,-553.19,8.945e-05,2]
[355825026,1741623032320,-57.81,8.952e-05,2]
[355825027,1741623032332,-92.19,8.952e-05,2]
[355825028,1741623032342,-376.11,8.973e-05,2]
[355825029,1741623032457,-177.08,8.973e-05,2]
[355825030,1741623032468,-168.16,8.98e-05,2]
[355825031,1741623032479,-1000.0,8.995e-05,2]
[355825032,1741623032495,-194.41653494,8.995e-05,2]
[355825033,1741623032547,-55.58346506,8.995e-05,2]
[355825034,1741623032557,-656.9,8.995e-05,2]
[355825035,1741623032568,-538.46,8.995e-05,2]
[355825036,1741623032578,-550.0,9e-05,2]
[355825037,1741623032588,-553.19,9.001e-05,2]
[355825038,1741623032597,-156.46860021,9.029e-05,2]
[355825039,1741623032801,-396.72139979,9.029e-05,2]
[355825041,1741623032811,-553.19,9.058e-05,2]
[355825043,1741623032821,-460.57,9.08e-05,2]
[355825045,1741623032830,-553.19,9.086e-05,2]
[355825046,1741623032840,-166.49,9.086e-05,2]
[355825047,1741623032850,-553.19,9.114e-05,2]
[355825048,1741623032859,-553.19,9.142e-05,2]
[355825049,1741623032869,-553.19,9.171e-05,2]
[355825050,1741623032879,-553.19,9.199e-05,2]
[355825051,1741623032889,-553.19,9.227e-05,2]
[355825052,1741623032898,-553.19,9.255e-05,2]
[355825053,1741623032908,-550.0,9.265e-05,2]
[355825054,1741623032918,-167.54,9.265e-05,2]
[355825055,1741623032928,-553.19,9.284e-05,2]
[355825056,1741623032937,-553.19,9.312e-05,2]
[355825057,1741623032947,-500.0,9.315e-05,2]
[355825058,1741623032956,-553.19,9.34e-05,2]
[355825059,1741623032965,-64.84073683,9.368e-05,2]
[355825073,1741623038811,-488.34926317,9.368e-05,2]
[355825074,1741623038822,-553.19,9.397e-05,2]
[355825075,1741623038832,-150.0,9.397e-05,2]
[355825076,1741623038843,-553.19,9.425e-05,2]
[355825077,1741623038853,-153.0,9.446e-05,3]
[355825078,1741623038865,-553.19,9.453e-05,2]
[355825079,1741623038876,-553.19,9.481e-05,2]
[355825080,1741623038886,-150.0,9.562e-05,7]
[355825081,1741623038899,-18.52839313,9.721e-05,2]
[355825082,1741623038929,-149.63160687,9.721e-05,2]
[355825083,1741623038940,-1000.0,9.73e-05,2]
[355825084,1741623038950,-150.0,9.733e-05,2]
[355825085,1741623038959,-150.0,9.737e-05,2]
[355825086,1741623038969,-150.0,9.737e-05,2]
[355825087,1741623038978,-150.0,9.743e-05,2]
[355825088,1741623038988,-150.0,9.75e-05,2]
[355825089,1741623038999,-150.0,9.752e-05,2]
[355825090,1741623039008,-150.0,9.754e-05,2]
[355825091,1741623039018,-150.0,9.754e-05,2]
[355825092,1741623039028,-127.78823781,9.756e-05,2]
[355825153,1741623040244,-150.0,9.735e-05,2]
[355825155,1741623040254,-150.0,9.737e-05,2]
[355825157,1741623040264,-150.0,9.753e-05,2]
[355825159,1741623040275,-22.21176219,9.756e-05,2]
[355825161,1741623040286,-249.88823781,9.76e-05,2]
[355825173,1741623040393,-750.11176219,9.76e-05,2]
[355825175,1741623040404,-150.0,9.762e-05,2]
[355825177,1741623040414,-150.0,9.771e-05,2]
[355825179,1741623040424,-150.0,9.774e-05,2]
[355825181,1741623040437,-404.05768082,9.779e-05,2]
[355825187,1741623040491,-150.0,9.776e-05,2]
[355825189,1741623040501,-595.94231918,9.779e-05,2]
[355825191,1741623040511,-150.0,9.783e-05,2]
[355825193,1741623040521,-150.0,9.785e-05,2]
[355825195,1741623040531,-150.0,9.785e-05,2]
[355825197,1741623040541,-150.0,9.786e-05,2]
[355825199,1741623040551,-150.0,9.787e-05,2]
[355825201,1741623040560,-1000.0,9.789e-05,2]
[355825203,1741623040570,-887.59,9.793e-05,2]
[355825205,1741623040579,-150.0,9.795e-05,2]
[355825207,1741623040588,-150.0,9.798e-05,2]
[355825208,1741623040597,-1000.0,9.801e-05,2]
[355825210,1741623040607,-150.0,9.804e-05,2]
[355825212,1741623040618,-150.0,9.806e-05,2]
[355825214,1741623040627,-1000.0,9.807e-05,2]
[355825216,1741623040637,-150.0,9.809e-05,2]
[355825218,1741623040648,-150.0,9.811e-05,2]
[355825220,1741623040660,-150.0,9.812e-05,2]
[355825222,1741623040670,-150.0,9.812e-05,2]
[355825224,1741623040679,-1000.0,9.815e-05,2]
[355825226,1741623040689,-1000.0,9.816e-05,2]
[355825228,1741623040698,-1000.0,9.822e-05,2]
[355825229,1741623040708,-150.0,9.826e-05,2]
[355825231,1741623040718,-1000.0,9.829e-05,2]
[355825233,1741623040728,-150.0,9.83e-05,2]
[355825235,1741623040737,-150.0,9.83e-05,2]
[355825236,1741623040747,-150.0,9.831e-05,2]
[355825238,1741623040757,-150.0,9.831e-05,2]
[355825239,1741623040767,-150.0,9.839e-05,2]
[355825240,1741623040778,-150.0,9.839e-05,2]
[355825241,1741623040789,-150.0,9.839e-05,2]
[355825242,1741623040798,-150.0,9.84e-05,2]
[355825243,1741623040807,-168.48958345,9.841e-05,2]
[355825244,1741623040817,-150.0,9.842e-05,2]
[355825245,1741623040827,-1000.0,9.844e-05,2]
[355825246,1741623040836,-150.0,9.845e-05,2]
[355825247,1741623040848,-150.0,9.853e-05,2]
[355825249,1741623040857,-150.0,9.857e-05,2]
[355825251,1741623040867,-1000.0,9.859e-05,2]
[355825252,1741623040877,-150.0,9.859e-05,2]
[355825253,1741623040886,-1000.0,9.86e-05,2]
[355825254,1741623040896,-150.0,9.861e-05,2]
[355825255,1741623040907,-150.0,9.862e-05,2]
[355825256,1741623040916,-150.0,9.862e-05,2]
[355825257,1741623040926,-150.0,9.862e-05,2]
[355825258,1741623040936,-150.0,9.864e-05,2]
[355825259,1741623040947,-150.0,9.865e-05,2]
[355825260,1741623040956,-150.0,9.869e-05,2]
[355825261,1741623040966,-150.0,9.87e-05,2]
[355825262,1741623040975,-150.0,9.87e-05,2]
[355825263,1741623040986,-150.0,9.871e-05,2]
[355825264,1741623040995,-150.0,9.871e-05,2]
[355825265,1741623041005,-3932.0,9.871e-05,2]
[355825266,1741623041014,-150.0,9.871e-05,2]
[355825267,1741623041024,-1012.0,9.871e-05,2]
[355825268,1741623041033,-150.0,9.874e-05,2]
[355825269,1741623041042,-150.0,9.876e-05,2]
[355825270,1741623041052,-150.0,9.876e-05,2]
[355825271,1741623041061,-150.0,9.878e-05,2]